bitfinex/quotes_ETHUSD_20220115
["timestamp","ask_amount","ask_price","bid_price","bid_amount"]
[1642210993718,0.00113685,3299.4,3299.3,3.710363]
[1642210994518,3.00113685,3299.4,3299.3,6.41500342]
[1642210994717,3.48835547,3300.5,3299.3,28.75540342]
[1642210994718,1.97270547,3300.5,3299.3,28.75540342]
[1642210994919,1.97270547,3300.5,3299.9,0.045463]
[1642210995119,1.97270547,3300.5,3300.3,0.045463]
[1642210995318,1.97270547,3300.5,3300.2,0.090926]
[1642210995520,1.97270547,3300.5,3300.3,1.25898295]
[1642210995722,1.97270547,3300.5,3300.4,1.19966466]
[1642210996120,1.97270547,3300.5,3300.4,1.24512766]
[1642210996121,1.52379545,3300.5,3300.4,1.24512766]
[1642210996621,1.52379545,3300.5,3300.4,7.24512766]
[1642210996867,0.00625266,3300.5,3300.4,7.24512766]
[1642210998371,0.00625266,3300.5,3300.4,24.88512766]
[1642210999570,0.00625266,3300.5,3300.4,7.24512766]
[1642210999771,0.00625266,3300.5,3300.4,1.24512766]
[1642210999972,0.00625266,3300.5,3300.4,5.13595456]
[1642211001216,0.00625266,3300.5,3300.4,3.83810683]
[1642211002618,0.00625266,3300.5,3300.4,3.79264383]
[1642211002819,0.00625266,3300.5,3300.4,3.83810683]
[1642211003218,0.00625266,3300.5,3300.4,3.88356983]
[1642211003418,0.00625266,3300.5,3300.4,3.92903283]
[1642211005262,0.00625266,3300.5,3300.4,1.33605366]
[1642211005263,3.00625266,3300.5,3300.4,1.33605366]
[1642211005462,3.00625266,3300.5,3300.0,3.696]
[1642211005764,0.00568423,3300.4,3300.1,0.090926]
[1642211006063,0.00511581,3300.3,3300.1,0.090926]
[1642211006265,0.00511581,3300.3,3300.1,0.136389]
[1642211006462,0.03521529,3300.5,3300.1,0.136389]
[1642211006463,0.00454739,3300.2,3300.1,0.136389]
[1642211007466,0.00454739,3300.2,3300.1,0.045463]
[1642211009817,0.00454739,3300.2,3300.1,0.090926]
[1642211010418,1.50526268,3300.6,3300.1,0.090926]
[1642211010618,1.07042648,3300.8,3300.2,0.045463]
[1642211010820,0.00113684,3300.4,3300.2,0.136389]
[1642211011018,0.00113684,3300.4,3300.2,0.090926]
[1642211012071,0.00113684,3300.4,3300.2,0.045463]
[1642211012271,0.00113684,3300.4,3300.1,0.090926]
[1642211012472,0.00113684,3300.4,3299.9,1.22386838]
[1642211012772,0.432,3300.3,3300.0,0.00113685]
[1642211012974,0.432,3300.3,3299.6,7.65851043]
[1642211012975,6.96173128,3300.2,3299.6,7.55964728]
[1642211013173,0.432,3300.1,3299.6,7.55964728]
[1642211013371,0.75788,3299.9,3299.7,0.00170527]
[1642211013572,0.432,3299.8,3299.7,0.00170527]
[1642211013973,0.432,3299.8,3299.6,1.09785497]
[1642211014973,0.00113684,3300.2,3299.7,0.045463]
[1642211015272,1.51777312,3300.0,3299.9,0.045463]
[1642211016316,1.51777312,3300.0,3299.8,0.00113685]
[1642211017216,1.46777312,3300.0,3299.8,0.00113685]
[1642211018919,1.46777312,3300.0,3299.9,1.29985952]
[1642211019574,1.46777312,3300.0,3299.8,0.00113685]
[1642211020775,2.22563312,3300.0,3299.8,0.00113685]
[1642211021176,2.22563312,3300.0,3299.8,2.59464191]
[1642211022177,1.46777312,3300.0,3299.8,2.59464191]
[1642211022477,1.46777312,3300.0,3299.8,0.00113685]
[1642211023323,1.46777312,3300.0,3299.8,2.59464191]
[1642211023524,1.46777312,3300.0,3299.9,1.4090513]
[1642211023925,1.46777312,3300.0,3299.8,2.64010491]
[1642211024526,1.46777312,3300.0,3299.9,2.59350506]
[1642211026968,1.89977312,3300.0,3299.9,2.59350506]
[1642211028667,1.89977312,3300.0,3299.8,2.59464191]
[1642211029269,1.89977312,3300.0,3299.9,2.59350506]
[1642211032109,1.89977312,3300.0,3299.9,2.59350506]
[1642211033107,0.432,3300.0,3299.9,2.63896806]
[1642211033706,3.00113684,3300.2,3299.9,2.63896806]
[1642211033905,3.00113684,3300.2,3300.1,4.045463]
[1642211034356,3.00113684,3300.2,3300.1,0.045463]
[1642211034558,3.00113684,3300.2,3300.1,1.41181511]
[1642211035659,3.00113684,3300.2,3300.1,4.00532017]
[1642211038115,3.00113684,3300.2,3300.1,14.03041561]
[1642211038505,3.00113684,3300.2,3300.1,10.85562017]
[1642211038704,3.00113684,3300.2,3300.1,28.49562017]
[1642211040005,3.00113684,3300.2,3300.1,32.38521361]
[1642211041404,3.00113684,3300.2,3300.1,26.54794197]
[1642211041606,0.432,3301.6,3300.1,26.54794197]
[1642211041856,4.01689825,3301.9,3301.1,0.045463]
[1642211041857,1.0,3301.8,3301.1,0.045463]
[1642211042058,0.00738951,3301.5,3301.4,0.045463]
[1642211042759,1.52447186,3301.5,3301.3,1.27509216]
[1642211043169,0.00682109,3301.4,3301.2,0.045463]
[1642211043361,0.00682109,3301.4,3300.9,0.045463]
[1642211043559,0.00625266,3301.3,3300.9,0.045463]
[1642211043760,0.00625266,3301.3,3300.8,0.045463]
[1642211043959,0.00568424,3301.2,3300.9,0.045463]
[1642211044360,0.00511582,3301.1,3301.0,0.045463]
[1642211045170,0.00511582,3301.1,3301.0,2.63805568]
[1642211045616,3.00511582,3301.1,3301.0,2.63805568]
[1642211045807,3.00511582,3301.1,3301.0,2.59259268]
[1642211046507,0.00511582,3301.1,3301.0,2.59259268]
[1642211046706,0.00511582,3301.1,3301.0,2.63805568]
[1642211047007,0.00511582,3301.1,3301.0,0.045463]
[1642211047609,0.00511582,3301.1,3301.0,2.59259268]
[1642211047812,0.00511582,3301.1,3301.0,2.63805568]
[1642211048008,0.00511582,3301.1,3301.0,2.59259268]
[1642211048808,0.00511582,3301.1,3300.9,2.59259268]
[1642211049009,0.00511582,3301.1,3300.9,2.63805568]
[1642211049208,0.00454739,3301.0,3300.9,2.63805568]
[1642211049660,0.00454739,3301.0,3300.9,2.59259268]
[1642211049862,2.60454739,3301.0,3300.9,2.59259268]
[1642211050062,0.30454739,3301.0,3300.9,2.59259268]
[1642211050261,2.03654739,3301.0,3300.9,2.59259268]
[1642211050465,1.73654739,3301.0,3300.9,2.59259268]
[1642211050662,2.48042614,3301.0,3300.9,2.59259268]
[1642211051466,1.03654739,3301.0,3300.9,2.59259268]
[1642211051866,1.03654739,3301.0,3300.9,1.0752341]
[1642211052264,1.03654739,3301.0,3300.5,0.045463]
[1642211052764,1.1280669,3300.8,3300.5,0.045463]
[1642211053210,0.00284212,3300.7,3300.5,0.045463]
[1642211053704,0.0022737,3300.6,3300.5,0.045463]
[1642211054906,0.0022737,3300.6,3300.4,0.045463]
[1642211054907,1.47207979,3300.5,3300.4,0.045463]
[1642211055308,1.47378507,3300.5,3300.4,2.73168354]
[1642211055513,1.47378507,3300.5,3300.4,0.045463]
[1642211055709,1.47378507,3300.5,3300.4,2.74761428]
[1642211055905,1.47378507,3300.5,3300.4,8.04761428]
[1642211056309,0.00170528,3300.5,3300.4,9.37098602]
[1642211056510,0.00170528,3300.5,3300.4,6.66883474]
[1642211056710,0.00170528,3300.5,3300.4,9.4173902]
[1642211057956,0.00170528,3300.5,3300.4,6.66883474]
[1642211058357,0.00170528,3300.5,3300.4,9.38616905]
[1642211059657,0.00170528,3300.5,3300.4,27.02616905]
[1642211060716,0.00170528,3300.5,3300.4,30.91551274]
[1642211060911,1.4688653,3301.3,3300.4,30.91551274]
[1642211061116,1.4688653,3301.3,3301.2,0.045463]
[1642211061312,1.4688653,3301.3,3301.2,0.751763]
[1642211061709,1.4688653,3301.3,3301.2,1.90756184]
[1642211061909,2.42486109,3302.2,3301.6,1.13692536]
[1642211062111,2.42486109,3302.2,3301.6,1.18238836]
[1642211062112,1.20166109,3302.2,3301.6,1.18238836]
[1642211062311,1.51699029,3301.7,3301.6,1.13692536]
[1642211062711,1.52381137,3301.7,3301.6,1.13692536]
[1642211064361,1.52381137,3301.7,3301.1,0.045463]
[1642211064757,0.00625265,3301.6,3301.1,0.045463]
[1642211065157,0.00568423,3301.5,3301.2,0.045463]
[1642211065559,0.00511581,3301.4,3301.2,0.045463]
[1642211065961,0.00454738,3301.3,3301.2,0.045463]
[1642211066559,0.00454738,3301.3,3301.1,0.045463]
[1642211067057,0.00397896,3301.2,3301.0,3.6529]
[1642211067461,2.93912023,3301.5,3301.0,3.6529]
[1642211067462,0.00341054,3301.1,3301.0,3.6529]
[1642211067861,0.00341054,3301.1,3301.0,3.698363]
[1642211068510,0.00341054,3301.1,3301.0,6.39964729]
[1642211068706,0.00341054,3301.1,3301.0,3.698363]
[1642211069807,1.30165214,3301.7,3301.0,7.5868964]
[1642211070008,1.30165214,3301.7,3301.1,0.045463]
[1642211070208,0.00284211,3301.6,3301.1,0.045463]
[1642211070607,0.00227369,3301.5,3301.1,0.045463]
[1642211071013,0.00170527,3301.4,3301.1,0.045463]
[1642211071209,0.00170527,3301.4,3301.0,3.698363]
[1642211071408,0.00113684,3301.3,3301.0,3.6529]
[1642211071708,0.00170527,3301.4,3301.0,3.698363]
[1642211071957,0.00170527,3301.4,3301.0,3.6529]
[1642211072158,0.00113684,3301.3,3301.0,3.6529]
[1642211072558,0.00170527,3301.4,3301.1,2.5924972]
[1642211073058,0.00113684,3301.3,3301.2,0.045463]
[1642211074160,0.00113684,3301.3,3301.2,2.6379602]
[1642211074559,0.00113684,3301.3,3301.2,2.5924972]
[1642211075613,0.00113684,3301.3,3301.0,3.698363]
[1642211075614,0.00113684,3301.3,3301.1,2.5924972]
[1642211076009,0.00113684,3301.3,3301.2,0.090926]
[1642211076708,0.00113684,3301.3,3301.2,2.890926]
[1642211077111,0.00113684,3301.3,3301.2,0.090926]
[1642211077716,0.00113684,3301.3,3301.1,2.5924972]
[1642211078315,0.00113684,3301.3,3301.2,2.5924972]
[1642211078915,0.75870684,3301.3,3301.2,2.6379602]
[1642211079657,0.75870684,3301.3,3301.2,0.045463]
[1642211080058,0.75870684,3301.3,3301.1,2.5924972]
[1642211080257,2.05291206,3301.3,3301.1,2.5924972]
[1642211080458,0.00113684,3301.3,3301.1,2.5924972]
[1642211080658,0.00113684,3301.3,3301.0,0.045463]
[1642211081860,0.00113684,3301.3,3301.1,2.59251468]
[1642211082761,0.00113684,3301.3,3301.1,2.63797768]
[1642211083411,0.00113684,3301.3,3301.2,2.59251468]
[1642211086315,1.41875136,3301.3,3301.2,2.59251468]
[1642211088260,1.41875136,3301.3,3301.0,2.63797768]
[1642211088559,1.41875136,3301.3,3301.1,0.045463]
[1642211088962,1.41875136,3301.3,3301.1,2.63797768]
[1642211089759,1.41875136,3301.3,3301.1,2.59251468]
[1642211090160,1.41875136,3301.3,3301.2,2.59251468]
[1642211091010,1.41875136,3301.3,3301.0,2.59251468]
[1642211092310,1.41875136,3301.3,3301.0,2.63797768]
[1642211092911,0.00113684,3301.3,3301.0,2.63797768]
[1642211093112,0.00113684,3301.3,3301.2,0.045463]
[1642211093612,0.00113684,3301.3,3301.1,2.63797768]
[1642211094011,1.32653879,3301.3,3301.1,2.63797768]
[1642211094215,1.32653879,3301.3,3301.2,2.63797768]
[1642211094657,1.32653879,3301.3,3301.2,2.59251468]
[1642211096257,2.08409879,3301.3,3301.2,2.59251468]
[1642211096865,0.75869684,3301.3,3301.0,2.59251468]
[1642211097059,0.75869684,3301.3,3301.1,0.045463]
[1642211097257,0.00113684,3301.3,3301.1,0.045463]
[1642211098509,0.00113684,3301.3,3301.2,2.59251468]
[1642211100912,0.00113684,3301.3,3301.2,2.68344068]
[1642211101710,0.43313684,3301.3,3301.2,4.09604268]
[1642211101963,0.00113684,3301.3,3301.2,4.09604268]
[1642211103365,2.5,3301.5,3301.2,21.73604268]
[1642211103566,2.5,3301.5,3301.4,6.145463]
[1642211103763,0.00227369,3301.5,3301.4,6.145463]
[1642211103963,0.00227369,3301.5,3301.4,0.045463]
[1642211104364,0.00227369,3301.5,3301.4,23.935463]
[1642211105264,0.00227369,3301.5,3301.4,26.52797768]
[1642211106814,0.00227369,3301.5,3301.4,30.4167497]
[1642211107918,1.51665296,3302.4,3301.4,30.4167497]
[1642211107919,1.51665296,3302.4,3301.6,0.7570953]
[1642211108116,0.45043843,3302.8,3302.3,4.945463]
[1642211108320,0.45043843,3302.8,3302.7,5.095463]
[1642211108516,0.7115527,3303.3,3302.7,5.095463]
[1642211108717,1.42555818,3302.8,3302.7,5.095463]
[1642211108916,1.42555818,3302.8,3302.7,7.58642756]
[1642211109115,0.00738951,3302.8,3302.7,7.58642756]
[1642211109361,0.83099536,3302.8,3302.7,7.58642756]
[1642211109762,1.65460121,3302.8,3302.7,7.58642756]
[1642211109962,1.65460121,3302.8,3302.7,25.22642756]
[1642211110166,1.65460121,3302.8,3302.7,7.58642756]
[1642211110562,1.65460121,3302.8,3302.7,10.17894224]
[1642211111767,1.65460121,3302.8,3302.7,5.12894224]
[1642211111967,1.65460121,3302.8,3302.7,3.95056737]
[1642211117164,1.60460121,3302.8,3302.7,3.95056737]
[1642211117368,0.82360585,3302.8,3302.7,3.95056737]
[1642211117564,1.60460121,3302.8,3302.7,3.95056737]
[1642211119264,1.60460121,3302.8,3302.7,21.59056737]
[1642211120633,1.60460121,3302.8,3302.7,3.95056737]
[1642211124020,1.60460121,3302.8,3302.7,21.59056737]
[1642211124463,0.14902051,3303.3,3302.8,7.3]
[1642211124664,1.51602438,3303.8,3302.9,17.64]
[1642211124864,0.00227369,3303.2,3302.9,18.6706]
[1642211125265,0.00170527,3303.1,3302.9,18.6706]
[1642211125669,0.01163691,3303.5,3302.9,18.6706]
[1642211125670,0.00113684,3303.0,3302.9,18.6706]
[1642211127268,0.00113684,3303.0,3302.9,19.96440272]
[1642211127467,0.00113684,3303.0,3302.9,29.77842513]
[1642211128634,0.00113684,3303.0,3302.9,7.77324038]
[1642211128820,0.00113684,3303.0,3302.9,6.47943766]
[1642211129819,0.00113684,3303.0,3302.9,1.55468868]
[1642211130418,0.00113684,3303.0,3302.9,2.84013946]
[1642211130821,0.00113684,3303.0,3302.9,1.28545078]
[1642211131519,0.00113684,3303.0,3302.9,3.87796546]
[1642211132365,0.00113684,3303.0,3302.9,5.4327019]
[1642211132966,0.00113684,3303.0,3302.9,3.87796546]
[1642211136114,0.00113684,3303.0,3302.9,2.59251468]
[1642211137017,0.00113684,3303.0,3302.8,2.59251468]
[1642211137417,0.00113684,3303.0,3302.9,4.22873525]
[1642211137919,0.00113684,3303.0,3302.9,6.82124993]
[1642211139670,0.00113684,3303.0,3302.9,3.77124993]
[1642211150069,0.045463,3303.2,3302.9,3.77124993]
[1642211150369,0.00113685,3303.2,3302.9,3.77124993]
[1642211151218,0.00113685,3303.2,3303.0,2.59251468]
[1642211160321,0.00113685,3303.2,3303.0,1.22017385]
[1642211160521,0.00113685,3303.2,3302.8,2.59251468]
[1642211160922,0.00113685,3303.2,3303.1,2.59251468]
[1642211161973,0.00113685,3303.2,3302.9,2.59251468]
[1642211162675,0.00113685,3303.2,3302.7,0.03856013]
[1642211162676,0.432,3303.1,3302.7,0.03856013]
[1642211162874,2.72168425,3303.0,3302.3,3.87525725]
[1642211163076,3.15368425,3303.0,3302.8,0.00113684]
[1642211163274,4.01276364,3302.9,3302.8,0.00113684]
[1642211164275,4.01276364,3302.9,3302.3,0.00397896]
[1642211164276,2.59783343,3302.9,3302.3,0.00397896]
[1642211164474,2.59783343,3302.9,3302.4,1.49704194]
[1642211164877,2.59783343,3302.9,3302.5,0.00284211]
[1642211165277,1.1892,3303.0,3302.5,0.00284211]
[1642211165718,2.52303173,3302.9,3302.5,0.00284211]
[1642211165919,2.95503173,3302.9,3302.5,0.00284211]
[1642211166719,3.00049473,3302.9,3302.5,0.00284211]
[1642211169024,3.00049473,3302.9,3302.2,1.46614608]
[1642211169222,3.00049473,3302.9,3302.1,1.2079]
[1642211169223,0.00170527,3302.8,3302.1,1.2079]
[1642211169472,0.00170527,3302.8,3302.3,0.00113685]
[1642211169679,0.045463,3302.5,3302.3,0.00113685]
[1642211169882,0.00113684,3302.7,3302.3,0.00113685]
[1642211170175,0.045463,3302.4,3302.1,1.31852439]
[1642211170573,0.045463,3302.4,3302.2,0.00170527]
[1642211171477,2.63214889,3302.7,3302.2,0.00170527]
[1642211172386,1.0,3302.6,3302.2,0.00170527]
[1642211172580,0.045463,3302.4,3302.2,0.00170527]
[1642211172785,7.682,3302.3,3302.1,0.0022737]
[1642211172982,7.682,3302.3,3301.9,0.00341054]
[1642211173225,1.045463,3302.2,3301.9,0.00341054]
[1642211173423,1.27623233,3302.0,3301.5,0.00568424]
[1642211173621,0.045463,3301.6,3301.5,0.00568424]
[1642211175027,0.045463,3301.6,3301.3,0.00682109]
[1642211176322,0.432,3301.5,3301.3,0.00682109]
[1642211178175,0.432,3301.5,3301.4,2.59170073]
[1642211178672,3.432,3301.5,3301.4,2.59795339]
[1642211180632,3.4223684,3301.5,3301.4,2.59795339]
[1642211184972,4.4223684,3301.5,3301.4,2.59795339]
[1642211185172,3.4223684,3301.5,3301.4,2.59795339]
[1642211185377,4.4223684,3301.5,3301.4,2.59795339]
[1642211186173,5.52453654,3301.5,3301.4,2.59795339]
[1642211187174,4.4223684,3301.5,3301.4,2.59795339]
[1642211187878,4.79331238,3301.5,3301.4,2.59795339]
[1642211191875,3.79331238,3301.5,3301.4,2.59795339]
[1642211194779,9.16388293,3301.5,3301.4,2.59795339]
[1642211194977,9.46388293,3301.5,3301.4,2.59795339]
[1642211195178,6.83355238,3301.5,3301.4,2.59795339]
[1642211195380,9.40519947,3301.5,3301.4,2.59795339]
[1642211195638,6.83355238,3301.5,3301.4,2.59795339]
[1642211195824,9.40593816,3301.5,3301.4,2.59795339]
[1642211197031,9.10593816,3301.5,3301.4,2.59795339]
[1642211197227,6.83355238,3301.5,3301.4,2.59795339]
[1642211197428,6.07601238,3301.5,3301.4,2.59795339]
[1642211198429,8.81308398,3301.5,3301.4,2.59795339]
[1642211198828,8.85854698,3301.5,3301.4,2.59795339]
[1642211199029,9.61609698,3301.5,3301.4,2.59795339]
[1642211199973,6.87902538,3301.5,3301.4,2.59795339]
[1642211200781,6.12147538,3301.5,3301.4,2.59795339]
[1642211200976,5.52147538,3301.5,3301.4,2.59795339]
[1642211201176,3.4223684,3301.5,3301.4,2.59795339]
[1642211201377,3.0,3301.5,3301.4,2.59795339]
[1642211202277,3.045463,3301.5,3301.4,2.59795339]
[1642211202976,3.36872884,3301.5,3301.4,2.59795339]
[1642211203231,4.36872884,3301.5,3301.4,2.59795339]
[1642211205629,4.66872884,3301.5,3301.4,2.59795339]
[1642211206229,7.29180988,3301.5,3301.4,2.59795339]
[1642211206431,8.04370615,3301.5,3301.4,2.59795339]
[1642211206630,7.44370615,3301.5,3301.4,2.59795339]
[1642211207078,4.75526584,3301.5,3301.4,2.59795339]
[1642211208076,4.75526584,3301.5,3301.4,0.00625266]
[1642211208475,5.10072884,3301.5,3301.3,0.00682109]
[1642211208681,4.05,3301.4,3301.3,0.00682109]
[1642211208876,4.05,3301.4,3300.6,1.1993]
[1642211208877,3.482,3301.4,3301.0,0.00852636]
[1642211209077,0.045463,3301.2,3301.0,0.00852636]
[1642211209275,0.045463,3301.2,3300.7,0.01023163]
[1642211209477,0.477463,3301.4,3300.7,1.34273048]
[1642211209875,0.477463,3301.4,3300.8,0.0096632]
[1642211210075,1.84697902,3301.4,3300.8,0.0096632]
[1642211210277,0.045463,3301.2,3301.1,2.59188251]
[1642211210726,0.045463,3301.2,3301.1,2.59984044]
[1642211210924,1.163963,3301.2,3301.1,2.59984044]
[1642211211130,1.463963,3301.2,3301.1,0.00795793]
[1642211211527,0.863963,3301.2,3301.0,0.00852636]
[1642211211725,0.8185,3301.2,3301.0,0.00852636]
[1642211211924,1.0,3301.3,3301.0,0.00852636]
[1642211212125,1.477463,3301.4,3301.0,0.00852636]
[1642211212324,1.477463,3301.4,3300.8,0.0096632]
[1642211212524,1.777463,3301.4,3300.8,0.0096632]
[1642211212927,1.777463,3301.4,3301.1,2.59199807]
[1642211213326,1.777463,3301.4,3301.2,0.00738951]
[1642211213930,1.477463,3301.4,3301.2,0.00738951]
[1642211214125,1.477463,3301.4,3301.0,0.00852636]
[1642211214777,1.477463,3301.4,3300.8,0.0096632]
[1642211215178,0.045463,3301.3,3301.1,2.59196386]
[1642211215581,0.045463,3301.3,3301.2,0.00738951]
[1642211216179,0.045463,3301.3,3301.0,0.00852636]
[1642211216585,0.75761,3301.2,3301.0,0.00852636]
[1642211216780,1.5152104,3301.2,3301.0,0.00852636]
[1642211217080,1.5152104,3301.2,3300.8,0.0096632]
[1642211217681,1.5152104,3301.2,3301.1,2.59202516]
[1642211217881,1.045463,3301.3,3301.1,2.59202516]
[1642211218152,0.045463,3301.3,3301.1,2.59998309]
[1642211218345,0.045463,3301.3,3301.2,0.00738951]
[1642211219150,0.045463,3301.3,3301.0,0.00852636]
[1642211219546,0.477463,3301.3,3301.2,2.59202516]
[1642211219949,0.477463,3301.3,3301.2,2.59941467]
[1642211220348,0.777463,3301.3,3301.2,2.59941467]
[1642211220548,0.777463,3301.3,3301.2,0.00738951]
[1642211220951,0.777463,3301.3,3301.1,2.54941467]
[1642211221449,0.777463,3301.3,3300.8,1.55190804]
[1642211221877,0.777463,3301.3,3300.9,0.00170527]
[1642211222278,0.777463,3301.3,3300.8,0.00227369]
[1642211222578,0.777463,3301.3,3300.8,1.55418173]
[1642211223879,0.432,3301.3,3300.8,1.55418173]
[1642211224681,3.32326584,3301.5,3300.8,1.55418173]
[1642211224888,3.0,3301.5,3300.8,19.19418173]
[1642211225082,0.00113685,3301.4,3300.8,19.19418173]
[1642211225285,0.00123685,3301.5,3300.9,17.64]
[1642211225481,0.00123685,3301.5,3301.0,1.2083]
[1642211225733,0.00123685,3301.5,3301.0,1.2105737]
[1642211225933,0.00123685,3301.5,3301.1,17.64170527]
[1642211226231,0.00123685,3301.5,3301.2,1.17236645]
[1642211226431,0.00123685,3301.5,3301.2,18.81236645]
[1642211226842,0.00123685,3301.5,3301.4,1.55190804]
[1642211228434,0.00123685,3301.5,3301.3,8.8490697]
[1642211229384,0.00123685,3301.5,3301.3,4.96160804]
[1642211229780,0.41759801,3301.8,3301.3,3.4097]
[1642211230082,0.045463,3301.5,3301.3,3.4097]
[1642211230283,0.045463,3301.4,3301.2,1.55304489]
[1642211231183,0.045463,3301.4,3301.2,1.50304489]
[1642211231381,0.045463,3301.4,3301.1,3.6753]
[1642211231582,0.045463,3301.4,3301.0,1.2083]
[1642211233329,1.42954686,3301.6,3301.0,1.2083]
[1642211233530,1.47859984,3301.6,3301.0,1.2083]
[1642211233731,0.00170527,3301.5,3301.0,1.2083]
[1642211234131,0.00113685,3301.4,3301.0,1.2083]
[1642211234535,0.00170527,3301.5,3301.0,1.2083]
[1642211234933,0.00113685,3301.4,3301.0,1.2083]
[1642211235332,0.00170527,3301.5,3301.0,1.2083]
[1642211235733,0.00113685,3301.4,3301.0,1.2083]
[1642211236133,0.00170527,3301.5,3301.0,1.2083]
[1642211236535,0.00113685,3301.4,3301.0,1.2083]
[1642211236976,0.00170527,3301.5,3301.0,1.2083]
[1642211237378,0.00113685,3301.4,3301.0,1.2083]
[1642211237778,0.00170527,3301.5,3301.0,1.2083]
[1642211238278,0.00113685,3301.4,3301.0,1.2083]
[1642211238677,0.00170527,3301.5,3301.0,1.2083]
[1642211239080,0.00113685,3301.4,3301.0,1.2083]
[1642211239480,0.04830512,3301.7,3301.0,1.2083]
[1642211239879,0.00227369,3301.6,3301.0,1.2083]
[1642211240281,0.045463,3301.7,3301.2,1.55503428]
[1642211240282,0.00170527,3301.5,3301.2,1.55503428]
[1642211240740,0.00113685,3301.4,3301.2,1.55503428]
[1642211241240,0.00170527,3301.5,3301.1,2.59181201]
[1642211241641,0.00113685,3301.4,3301.1,2.59181201]
[1642211241839,0.00113685,3301.4,3301.3,2.59181201]
[1642211242040,0.00170527,3301.5,3301.3,2.59181201]
[1642211242344,0.00113685,3301.4,3301.3,2.59181201]
[1642211243141,0.00113685,3301.4,3301.1,2.59181201]
[1642211253083,0.00113685,3301.4,3301.1,20.23181201]
[1642211253383,0.00113685,3301.4,3301.3,8.80503428]
[1642211253780,0.00113685,3301.4,3301.3,26.44503428]
[1642211254381,0.00113685,3301.4,3301.3,27.48181201]
[1642211255831,0.00113685,3301.4,3301.3,33.70162801]
[1642211256629,0.00113685,3301.4,3301.3,31.36927367]
[1642211258631,0.00113685,3301.4,3301.3,6.47927367]
[1642211258834,0.04659985,3301.4,3301.3,6.47927367]
[1642211259489,0.00113685,3301.4,3301.3,6.47927367]
[1642211259788,0.26481028,3301.4,3301.3,6.47927367]
[1642211259988,0.26481028,3301.4,3301.3,1.55499653]
[1642211261387,0.26481028,3301.4,3301.2,1.55499653]
[1642211262390,0.26481028,3301.4,3301.1,4.14680854]
[1642211263236,0.26481028,3301.4,3301.2,1.55499653]
[1642211263831,0.00113685,3301.4,3301.2,1.55499653]
[1642211264031,0.00113685,3301.4,3301.2,4.14680854]
[1642211264632,0.00113685,3301.4,3301.2,1.55499653]
[1642211265436,0.045463,3301.3,3301.2,1.55499653]
[1642211266235,0.045463,3301.3,3301.1,2.59181201]
[1642211266437,0.00113685,3301.4,3301.2,5.61676317]
[1642211268301,0.00113685,3301.4,3301.3,5.89181201]
[1642211268695,0.00113685,3301.4,3301.3,2.59181201]
[1642211269895,0.00113685,3301.4,3301.2,2.8217597]
[1642211270094,3.00113685,3301.4,3301.2,2.8217597]
[1642211270295,3.00113685,3301.4,3301.2,1.55499653]
[1642211270728,3.00113685,3301.4,3301.3,2.59181201]
[1642211271530,3.00113685,3301.4,3301.2,1.55499653]
[1642211272130,3.04659985,3301.4,3301.2,1.55499653]
[1642211272531,3.00113685,3301.4,3301.2,1.55499653]
[1642211272732,3.0,3301.4,3301.2,1.55499653]
[1642211273135,3.0,3301.4,3301.1,4.14680854]
[1642211273441,3.045463,3301.4,3301.1,4.14680854]
[1642211273635,0.045463,3301.3,3301.1,4.14680854]
[1642211273834,0.045463,3301.3,3301.1,1.55499653]
[1642211278531,3.045463,3301.4,3301.1,1.55499653]
[1642211280333,0.045463,3301.3,3301.1,1.55499653]
[1642211280932,3.045463,3301.4,3301.1,1.55499653]
[1642211282287,3.0,3301.4,3301.1,1.55499653]
[1642211284489,3.045463,3301.4,3301.1,1.55499653]
[1642211284688,3.0,3301.4,3301.1,1.55499653]
[1642211284887,3.045463,3301.4,3301.1,1.55499653]
[1642211288130,0.045463,3301.3,3301.1,1.55499653]
[1642211288330,3.045463,3301.4,3301.1,1.55499653]
[1642211288530,3.0,3301.4,3301.1,1.55499653]
[1642211289035,3.045463,3301.4,3301.1,1.55499653]
[1642211289477,3.045463,3301.4,3301.1,4.14671067]
[1642211289878,3.0,3301.4,3301.1,4.14671067]
[1642211290277,3.0,3301.4,3301.2,1.16115641]
[1642211290878,3.0,3301.4,3301.3,17.64]
[1642211291080,3.0,3301.4,3301.3,19.19499653]
[1642211292079,3.0,3301.4,3301.3,24.1191758]
[1642211297079,3.0,3301.4,3301.3,6.4791758]
[1642211297679,3.0,3301.4,3301.3,2.59171414]
[1642211299583,3.045463,3301.4,3301.3,2.33233693]
[1642211300282,3.0,3301.4,3301.3,2.33233693]
[1642211300482,3.045463,3301.4,3301.1,4.92405107]
[1642211301732,4.30440893,3301.4,3301.3,1.55497435]
[1642211302331,4.25894593,3301.4,3301.3,1.55497435]
[1642211302534,4.30440893,3301.4,3301.3,1.55497435]
[1642211303334,4.25894593,3301.4,3301.3,1.55497435]
[1642211305583,3.0,3301.4,3301.3,1.55497435]
[1642211305986,3.0,3301.4,3301.3,4.70497435]
[1642211306686,3.0,3301.4,3301.3,6.14071125]
[1642211306886,3.0,3301.4,3301.3,4.02745104]
[1642211309537,3.0,3301.4,3301.3,21.66745104]
[1642211310738,3.0,3301.4,3301.3,25.5549127]
[1642211312390,0.045463,3302.3,3301.4,7.3]
[1642211312587,0.45799445,3302.9,3301.7,17.64]
[1642211312784,1.1376,3303.4,3301.7,17.64]
[1642211312785,0.00511581,3302.1,3301.7,17.64]
[1642211312986,0.00511581,3302.1,3301.9,17.64]
[1642211313184,1.51630023,3303.2,3301.9,17.64]
[1642211313185,0.00454739,3302.0,3301.9,17.64]
[1642211313383,0.00454739,3302.0,3301.9,19.1539315]
[1642211313584,0.01080005,3302.0,3301.9,19.1539315]
[1642211314584,0.01080005,3302.0,3301.9,20.34376366]
[1642211314988,0.01080005,3302.0,3301.9,29.15477974]
[1642211316232,0.01080005,3302.0,3301.9,26.82293946]
[1642211316631,0.01080005,3302.0,3301.9,27.95253946]
[1642211317832,0.01080005,3302.0,3301.9,30.28437974]
[1642211319033,0.05626305,3302.0,3301.9,30.28437974]
[1642211319881,0.01080005,3302.0,3301.9,30.28437974]
[1642211320881,0.01080005,3302.0,3301.9,27.95253946]
[1642211326882,0.01080005,3302.0,3301.9,29.55253946]
[1642211332250,0.045463,3303.0,3301.9,29.98453946]
[1642211332452,0.045463,3303.2,3302.6,0.75678]
[1642211332651,4.91224661,3303.7,3302.6,0.75678]
[1642211332652,0.00113684,3303.3,3302.7,17.64]
[1642211332849,0.00113684,3303.3,3302.7,18.2422737]
[1642211333051,0.00113684,3303.3,3302.8,20.40094819]
[1642211333254,0.00113684,3303.3,3302.9,1.21865301]